{"text_format":"1","workbook":"xlsx","n_sheets":4,"sheets":["設問作成","調査票","集計リスト","マスタ"],"not_rendered":{"charts":0,"images":0,"macros":1,"external_links":0,"defined_names":0,"comments":0,"pivot_tables":0},"unopened":[],"bounds":{"document_bytes":16777216,"sheet_cells":100000,"rows_first":2000,"rows_last":500,"rows_between":2000,"halvings":0,"cell_chars":16384,"cell_head_chars":4096},"cells_cut":0,"cells_raw":0,"read":"whole","date_system":"1900"}

{"sheet":"設問作成","index":0,"n_rows":36,"n_cols":17,"rows_kept":36,"cut":false,"hidden":false,"merged":[[4,11,4,16],[4,5,4,10],[1,4,1,7],[2,4,2,7],[4,2,5,2],[4,1,5,1],[4,3,5,3],[4,4,5,4]]}
[]
[null,null,null,null,"「設問作成」シートの内容から調査票のシートを自動作成して、このファイルが格納されているフォルダに新規のXLSXファイルとして保存します。"]
[null,null,null,null,"このファイルが格納されているフォルダを参照して、格納されている「調査票（回答済）」の内容を「集計リスト」に一覧化します。（処理に時間がかかります）"]
[]
[null,"採用","Q","設問文","回答方式","設問分類（6個まで）",null,null,null,null,null,"選択肢（6個まで）"]
[null,null,null,null,null,"①","②","③","④","⑤","⑥","①","②","③","④","⑤","⑥"]
[null,1,{"$f":"IF(B7=1, MAX($C$6:C6)+1, \"\")","v":1},"会社名を教えてください。","入力（自由記述）"]
[null,1,{"$f":"IF(B8=1, MAX($C$6:C7)+1, \"\")","v":2},"事務所所在地の郵便番号を教えてください。","入力（整数のみ）"]
[null,1,{"$f":"IF(B9=1, MAX($C$6:C8)+1, \"\")","v":3},"従業員数を教えてください。","入力（整数のみ）"]
[null,1,{"$f":"IF(B10=1, MAX($C$6:C9)+1, \"\")","v":4},"年代別の従業員数を教えてください。","入力（整数のみ）","20代以下","30代","40代","50代","60代","70代以上"]
[null,1,{"$f":"IF(B11=1, MAX($C$6:C10)+1, \"\")","v":5},"現在、人手不足を実感していますか。","単一選択",null,null,null,null,null,null,"実感している","少し実感している","あまり実感していない","実感していない"]
[null,1,{"$f":"IF(B12=1, MAX($C$6:C11)+1, \"\")","v":6},"設備投資・新規採用についての考えを教えてください。","単一選択",null,null,null,null,null,null,"積極的に行っていた","やや積極的に行っていた","やや消極的に行ってきた","消極的に行ってきた"]
[null,1,{"$f":"IF(B13=1, MAX($C$6:C12)+1, \"\")","v":7},"企業経営について、後継者の見通しを教えてください。","単一選択",null,null,null,null,null,null,"後継者の見通しがある","後継者の見通しがない"]
[null,1,{"$f":"IF(B14=1, MAX($C$6:C13)+1, \"\")","v":8},"技術者の人数を教えてください。","入力（整数のみ）","１級土木施工管理技士","２級土木施工管理技士","１級電気工事施工管理技士","２級電気工事施工管理技士"]
[null,1,{"$f":"IF(B15=1, MAX($C$6:C14)+1, \"\")","v":9},"保有機械の台数を教えてください。","入力（整数のみ）","バックホウ","ダンプトラック","クレーン付きトラック"]
[null,1,{"$f":"IF(B16=1, MAX($C$6:C15)+1, \"\")","v":10},"現在受注している業務の種類を教えてください。","複数選択","維持管理","小規模修繕","メンテナンス","災害復旧"]
[null,1,{"$f":"IF(B17=1, MAX($C$6:C16)+1, \"\")","v":11},"維持管理業務の受注量（総受注額に対する割合）","単一選択",null,null,null,null,null,null,"僅か(2割未満)","ある程度(2～4割程度)","半分程度(4～6割程度)","かなり(6～8割程度)","ほとんど(8割以上)"]
[null,1,{"$f":"IF(B18=1, MAX($C$6:C17)+1, \"\")","v":12},"業務受注割合（発注者区分）","単一選択","国","県","市町村","民間",null,null,"僅か(2割未満)","ある程度(2～4割程度)","半分程度(4～6割程度)","かなり(6～8割程度)","ほとんど(8割以上)"]
[null,1,{"$f":"IF(B19=1, MAX($C$6:C18)+1, \"\")","v":13},"各自治体発注の業務量の割合","単一選択","●●県","●●市","●●町","●●村",null,null,"僅か(2割未満)","ある程度(2～4割程度)","半分程度(4～6割程度)","かなり(6～8割程度)","ほとんど(8割以上)"]
[null,1,{"$f":"IF(B20=1, MAX($C$6:C19)+1, \"\")","v":14},"維持管理業務についての考え","単一選択","収益性の多寡","人員確保の難しさ","効率性の低さ","受託期間の短さ",null,null,"とてもそう思う","そう思う","どちらでもない","あまりそう思わない","全くそう思わない"]
[null,1,{"$f":"IF(B21=1, MAX($C$6:C20)+1, \"\")","v":15},"維持管理業務への関心","単一選択",null,null,null,null,null,null,"とてもある","ある","どちらでもない","あまりない","全くない"]
[null,1,{"$f":"IF(B22=1, MAX($C$6:C21)+1, \"\")","v":16},"維持管理業務の受注や受注に向けた取組み","単一選択",null,null,null,null,null,null,"進めている","進めようと考えている","進めるつもりはない","どちらでもない"]
[null,1,{"$f":"IF(B23=1, MAX($C$6:C22)+1, \"\")","v":17},"実感する課題","入力（自由記述）"]
[null,1,{"$f":"IF(B24=1, MAX($C$6:C23)+1, \"\")","v":18},"事業への参入意向","単一選択",null,null,null,null,null,null,"ぜひ参入したい","参入したい","参入を検討したい","参入したくない"]
[null,1,{"$f":"IF(B25=1, MAX($C$6:C24)+1, \"\")","v":19},"対応可能な業務範囲","複数選択","土木系の日常管理のみ","造園系の日常管理を含む","規模の大きな補修工事含む","構造物点検や補修設計を含む"]
[null,1,{"$f":"IF(B26=1, MAX($C$6:C25)+1, \"\")","v":20},"入札対象業務を対象とした場合の参加意欲","単一選択",null,null,null,null,null,null,"参画意欲が増す","変わらない","参画意欲が減る","わからない"]
[null,1,{"$f":"IF(B27=1, MAX($C$6:C26)+1, \"\")","v":21},"事業への参入を検討する条件","入力（自由記述）"]
[null,1,{"$f":"IF(B28=1, MAX($C$6:C27)+1, \"\")","v":22},"対応可能な区域","複数選択","市域の4分の1","市域の3分の1","市域の2分の1","市内全体","わからない"]
[null,1,{"$f":"IF(B29=1, MAX($C$6:C28)+1, \"\")","v":23},"望ましい体制","複数選択","単独","経常建設共同企業体","地域維持型企業体","事業協同組合","わからない"]
[null,1,{"$f":"IF(B30=1, MAX($C$6:C29)+1, \"\")","v":24},"自社の立ち位置","単一選択",null,null,null,null,null,null,"幹事企業","構成企業","再委託先","わからない"]
[null,1,{"$f":"IF(B31=1, MAX($C$6:C30)+1, \"\")","v":25},"望ましい契約期間","単一選択",null,null,null,null,null,null,"半年","1年","2年","3～4年"]
[null,1,{"$f":"IF(B32=1, MAX($C$6:C31)+1, \"\")","v":26},"想定メリット・デメリット","入力（自由記述）",null,null,null,null,null,null,"受注高増","人員配置・作業効率化","調整負担増"]
[null,1,{"$f":"IF(B33=1, MAX($C$6:C32)+1, \"\")","v":27},"後日実施する勉強会や説明会などの市場調査への参加意欲","単一選択",null,null,null,null,null,null,"希望する","希望しない"]
[null,1,{"$f":"IF(B34=1, MAX($C$6:C33)+1, \"\")","v":28},"共同企業体を構成する場合の懸念事項","入力（自由記述）"]
[null,null,{"$f":"IF(B35=1, MAX($C$6:C34)+1, \"\")","v":""},"（任意入力）"]
[null,null,{"$f":"IF(B36=1, MAX($C$6:C35)+1, \"\")","v":""},"（任意入力）"]

{"sheet":"調査票","index":1,"n_rows":64,"n_cols":6,"rows_kept":64,"cut":false,"hidden":false,"merged":[[3,2,3,3],[1,1,1,5]]}
[]
[null,"維持管理の実態および管理手法の改善検討に向けたアンケート調査"]
[]
[null,"設問番号","設問",null,"回答欄","回答形式"]
[null,"Q1","会社名を教えてください。",null,null,"入力（自由）"]
[null,"Q2","事務所所在地の郵便番号を教えてください。",null,null,"入力（整数のみ）"]
[null,"Q3","従業員数を教えてください。",null,null,"入力（整数のみ）"]
[null,"Q4","年代別の従業員数を教えてください。","20代以下",null,"入力（整数のみ）"]
[null,null,null,"30代",null,"入力（整数のみ）"]
[null,null,null,"40代",null,"入力（整数のみ）"]
[null,null,null,"50代",null,"入力（整数のみ）"]
[null,null,null,"60代",null,"入力（整数のみ）"]
[null,null,null,"70代以上",null,"入力（整数のみ）"]
[null,"Q5","現在、人手不足を実感していますか。",null,null,"単一選択"]
[null,"Q6","設備投資・新規採用についての考えを教えてください。",null,null,"単一選択"]
[null,"Q7","企業経営について、後継者の見通しを教えてください。",null,null,"単一選択"]
[null,"Q8","技術者の人数を教えてください。","１級土木施工管理技士",null,"入力（整数のみ）"]
[null,null,null,"２級土木施工管理技士",null,"入力（整数のみ）"]
[null,null,null,"１級電気工事施工管理技士",null,"入力（整数のみ）"]
[null,null,null,"２級電気工事施工管理技士",null,"入力（整数のみ）"]
[null,"Q9","保有機械の台数を教えてください。","バックホウ",null,"入力（整数のみ）"]
[null,null,null,"ダンプトラック",null,"入力（整数のみ）"]
[null,null,null,"クレーン付きトラック",null,"入力（整数のみ）"]
[null,"Q10","現在受注している業務の種類を教えてください。","維持管理",null,"複数選択"]
[null,null,null,"小規模修繕",null,"複数選択"]
[null,null,null,"メンテナンス",null,"複数選択"]
[null,null,null,"災害復旧",null,"複数選択"]
[null,"Q11","業務受注割合（発注者区分）","国",null,"単一選択"]
[null,null,null,"県",null,"単一選択"]
[null,null,null,"市町村",null,"単一選択"]
[null,null,null,"民間",null,"単一選択"]
[null,"Q12","各自治体発注の業務量の割合","●●県",null,"単一選択"]
[null,null,null,"●●市",null,"単一選択"]
[null,null,null,"●●町",null,"単一選択"]
[null,null,null,"●●村",null,"単一選択"]
[null,"Q13","維持管理業務についての考え","収益性の多寡",null,"単一選択"]
[null,null,null,"人員確保の難しさ",null,"単一選択"]
[null,null,null,"効率性の低さ",null,"単一選択"]
[null,null,null,"受託期間の短さ",null,"単一選択"]
[null,"Q14","維持管理業務への関心",null,null,"単一選択"]
[null,"Q15","維持管理業務の受注や受注に向けた取組み",null,null,"単一選択"]
[null,"Q16","実感する課題",null,null,"入力（自由）"]
[null,"Q17","事業への参入意向",null,null,"単一選択"]
[null,"Q18","対応可能な業務範囲","土木系の日常管理のみ",null,"複数選択"]
[null,null,null,"造園系の日常管理を含む",null,"複数選択"]
[null,null,null,"規模の大きな補修工事含む",null,"複数選択"]
[null,null,null,"構造物点検や補修設計を含む",null,"複数選択"]
[null,"Q19","入札対象業務を対象とした場合の参加意欲",null,null,"単一選択"]
[null,"Q20","事業への参入を検討する条件",null,null,"入力（自由）"]
[null,"Q21","対応可能な区域","市域の4分の1",null,"複数選択"]
[null,null,null,"市域の3分の1",null,"複数選択"]
[null,null,null,"市域の2分の1",null,"複数選択"]
[null,null,null,"市内全体",null,"複数選択"]
[null,null,null,"わからない",null,"複数選択"]
[null,"Q22","望ましい体制","単独",null,"複数選択"]
[null,null,null,"経常建設共同企業体",null,"複数選択"]
[null,null,null,"地域維持型企業体",null,"複数選択"]
[null,null,null,"事業協同組合",null,"複数選択"]
[null,null,null,"わからない",null,"複数選択"]
[null,"Q23","自社の立ち位置",null,null,"単一選択"]
[null,"Q24","望ましい契約期間",null,null,"単一選択"]
[null,"Q25","想定メリット・デメリット",null,null,"入力（自由）"]
[null,"Q26","後日実施する勉強会や説明会などの市場調査への参加意欲",null,null,"単一選択"]
[null,"Q27","共同企業体を構成する場合の懸念事項",null,null,"入力（自由）"]

{"sheet":"集計リスト","index":2,"n_rows":6,"n_cols":61,"rows_kept":6,"cut":false,"hidden":false,"merged":[]}
[]
[]
[]
[null,"Q1","Q2","Q3","Q4",null,null,null,null,null,"Q5","Q6","Q7","Q8",null,null,null,"Q9",null,null,"Q10",null,null,null,"Q11",null,null,null,"Q12",null,null,null,"Q13",null,null,null,"Q14","Q15","Q16","Q17","Q18",null,null,null,"Q19","Q20","Q21",null,null,null,null,"Q22",null,null,null,null,"Q23","Q24","Q25","Q26","Q27"]
[null,"会社名を教えてください。","事務所所在地の郵便番号を教えてください。","従業員数を教えてください。","年代別の従業員数を教えてください。",null,null,null,null,null,"現在、人手不足を実感していますか。","設備投資・新規採用についての考えを教えてください。","企業経営について、後継者の見通しを教えてください。","技術者の人数を教えてください。",null,null,null,"保有機械の台数を教えてください。",null,null,"現在受注している業務の種類を教えてください。",null,null,null,"業務受注割合（発注者区分）",null,null,null,"各自治体発注の業務量の割合",null,null,null,"維持管理業務についての考え",null,null,null,"維持管理業務への関心","維持管理業務の受注や受注に向けた取組み","実感する課題","事業への参入意向","対応可能な業務範囲",null,null,null,"入札対象業務を対象とした場合の参加意欲","事業への参入を検討する条件","対応可能な区域",null,null,null,null,"望ましい体制",null,null,null,null,"自社の立ち位置","望ましい契約期間","想定メリット・デメリット","後日実施する勉強会や説明会などの市場調査への参加意欲","共同企業体を構成する場合の懸念事項"]
[null,null,null,null,"20代以下","30代","40代","50代","60代","70代以上",null,null,null,"１級土木施工管理技士","２級土木施工管理技士","１級電気工事施工管理技士","２級電気工事施工管理技士","バックホウ","ダンプトラック","クレーン付きトラック","維持管理","小規模修繕","メンテナンス","災害復旧","国","県","市町村","民間","●●県","●●市","●●町","●●村","収益性の多寡","人員確保の難しさ","効率性の低さ","受託期間の短さ",null,null,null,null,"土木系の日常管理のみ","造園系の日常管理を含む","規模の大きな補修工事含む","構造物点検や補修設計を含む",null,null,"市域の4分の1","市域の3分の1","市域の2分の1","市内全体","わからない","単独","経常建設共同企業体","地域維持型企業体","事業協同組合","わからない"]

{"sheet":"マスタ","index":3,"n_rows":5,"n_cols":2,"rows_kept":5,"cut":false,"hidden":true,"merged":[]}
[]
["入力（自由記述）",1]
["入力（整数のみ）",2]
["単一選択",3]
["複数選択",4]